bitfinex-derivatives/quotes_SOLF0:USTF0_20250530
["timestamp","ask_amount","ask_price","bid_price","bid_amount"]
[1748626102952,6.3455605,158.73,158.7,39.86850225]
[1748626103153,0.0463605,158.73,158.7,33.56840225]
[1748626103859,6.3455605,158.73,158.7,39.86840225]
[1748626104055,0.0463605,158.73,158.7,33.56840225]
[1748626104459,0.0463605,158.73,158.46,376.9289]
[1748626104460,0.0463605,158.73,158.61,1.9683]
[1748626104655,33.52,158.74,158.62,33.52]
[1748626104861,6.3015,158.67,158.64,6.3023]
[1748626105156,2.0881,158.73,158.62,33.52]
[1748626105561,0.04322281,158.69,158.66,0.04171577]
[1748626106056,6.3009,158.68,158.66,0.04171577]
[1748626106766,6.3013,158.67,158.66,0.04171577]
[1748626108359,0.04322281,158.69,158.66,6.34321577]
[1748626108666,0.04322281,158.69,158.66,0.04171577]
[1748626108966,0.04322281,158.69,158.68,6.3009]
[1748626109368,6.34402281,158.69,158.66,33.56171577]
[1748626109560,0.04322281,158.69,158.66,33.56171577]
[1748626109959,0.04322281,158.69,158.67,6.3009]
[1748626110966,0.04322281,158.69,158.66,33.56171577]
[1748626111164,0.04322281,158.69,158.66,0.04171577]
[1748626111667,6.3013,158.67,158.66,0.04171577]
[1748626115766,6.3009,158.68,158.66,0.04171577]
[1748626115964,0.04322281,158.69,158.66,0.04171577]
[1748626116867,6.3013,158.67,158.66,0.04171577]
[1748626123169,0.04322281,158.69,158.66,0.04171577]
[1748626123475,2.0242,158.8,158.67,33.46]
[1748626123674,6.2975,158.77,158.73,6.2986]
[1748626123864,2.0242,158.8,158.72,33.46]
[1748626124474,0.04131979,158.78,158.74,0.04141547]
[1748626125075,6.33841979,158.78,158.74,6.33951547]
[1748626125271,6.33841979,158.78,158.74,0.04141547]
[1748626125672,6.33841979,158.78,158.75,6.298]
[1748626125873,6.2973,158.77,158.74,0.04141547]
[1748626126677,6.2973,158.77,158.74,6.33971547]
[1748626127475,6.2974,158.77,158.74,6.33971547]
[1748626128476,0.04131979,158.78,158.75,6.298]
[1748626128477,6.33841979,158.78,158.75,6.298]
[1748626128675,0.04131979,158.78,158.74,0.04141547]
[1748626128976,6.2973,158.77,158.74,6.33961547]
[1748626129280,0.04131979,158.78,158.74,0.04141547]
[1748626129480,0.04131979,158.78,158.74,6.33961547]
[1748626129481,6.2973,158.77,158.74,6.33961547]
[1748626129984,0.04131979,158.78,158.77,6.2973]
[1748626130281,0.04131979,158.78,158.76,33.44]
[1748626130483,0.04131979,158.78,158.76,39.7376]
[1748626131073,0.04131979,158.78,158.76,33.44]
[1748626131978,0.04131979,158.78,158.76,39.7374]
[1748626133082,0.04131979,158.78,158.76,33.44]
[1748626133680,0.04131979,158.78,158.74,0.04141547]
[1748626134080,6.2981,158.75,158.74,0.04141547]
[1748626135977,2.0274,158.77,158.74,0.04141547]
[1748626136677,6.2981,158.75,158.74,0.04141547]
[1748626136879,0.04131979,158.78,158.74,0.04141547]
[1748626138177,6.33851979,158.78,158.75,6.2978]
[1748626138584,0.04131979,158.78,158.76,6.2976]
[1748626138781,0.04131979,158.78,158.74,33.48141547]
[1748626139183,0.04131979,158.78,158.76,6.2975]
[1748626139486,0.04131979,158.78,158.74,33.48141547]
[1748626139982,0.04131979,158.78,158.77,6.2973]
[1748626144784,4.1506,158.85,158.77,11.05543215]
[1748626144984,4.1506,158.85,158.78,33.44]
[1748626145783,0.04223037,158.83,158.8,0.04637632]
[1748626146083,6.2957,158.81,158.8,0.04637632]
[1748626148379,0.04223037,158.83,158.74,33.36]
[1748626148587,1.9906,158.82,158.74,33.36]
[1748626148987,6.2966,158.79,158.76,6.2975]
[1748626149490,6.2969,158.78,158.76,0.04199037]
[1748626149689,0.04749746,158.79,158.76,0.04199037]
[1748626151091,6.2969,158.78,158.76,6.33939037]
[1748626151695,6.34419746,158.79,158.76,6.33939037]
[1748626152289,0.04749746,158.79,158.76,0.04199037]
[1748626152493,0.04749746,158.79,158.77,11.05543215]
[1748626152891,0.04749746,158.79,158.78,6.2969]
[1748626153093,4.1506,158.85,158.77,11.05543215]
[1748626153393,6.2946,158.84,158.82,6.2953]
[1748626153585,33.36,158.87,158.82,6.2953]
[1748626153989,6.2943,158.85,158.82,6.2953]
[1748626154191,0.04030708,158.85,158.84,6.2942]
[1748626154494,0.04030708,158.85,158.82,0.04276617]
[1748626154993,6.2947,158.84,158.82,0.04276617]
[1748626155495,6.33470708,158.85,158.82,6.33776617]
[1748626156494,6.2945,158.84,158.82,6.33776617]
[1748626156696,0.04030708,158.85,158.82,0.04276617]
[1748626157098,6.33440708,158.85,158.82,6.33786617]
[1748626157496,0.04030708,158.85,158.82,0.04276617]
[1748626157795,0.04030708,158.85,158.83,6.2946]
[1748626158593,0.04030708,158.85,158.84,6.2945]
[1748626161591,0.04030708,158.85,158.82,0.04276617]
[1748626162597,6.2949,158.83,158.82,0.04276617]
[1748626163804,6.2946,158.84,158.82,0.04276617]
[1748626164099,0.04030708,158.85,158.82,0.04276617]
[1748626164296,6.2947,158.84,158.82,0.04276617]
[1748626166501,6.2949,158.83,158.82,0.04276617]
[1748626166800,4.2797,158.84,158.78,33.36]
[1748626167604,6.2965,158.79,158.76,6.2974]
[1748626167804,6.3406567,158.79,158.76,6.34028107]
[1748626168200,6.297,158.78,158.76,0.04288107]
[1748626168505,0.0441567,158.79,158.76,0.04288107]
[1748626169900,6.2973,158.77,158.76,0.04288107]
[1748626173207,0.0441567,158.79,158.76,0.04288107]
[1748626175698,0.0441567,158.79,158.72,33.36]
[1748626176411,6.2989,158.73,158.71,6.2995]
[1748626176903,6.2994,158.72,158.7,2.24097423]
[1748626177104,0.04414053,158.74,158.7,2.24097423]
[1748626177499,6.2997,158.71,158.7,2.24097423]
[1748626178106,0.04414053,158.74,158.7,2.24097423]
[1748626179005,6.2997,158.71,158.7,2.24097423]
[1748626184211,6.2997,158.71,158.7,0.04163423]
[1748626184417,33.34414053,158.74,158.64,33.3]
[1748626184612,4.09,158.7,158.64,33.3]
[1748626185116,4.09,158.7,158.66,6.3014]
[1748626185419,6.3007,158.69,158.66,6.3014]
[1748626185715,4.13844008,158.7,158.66,6.3014]
[1748626185919,6.3007,158.69,158.66,6.3014]
[1748626186117,4.13844008,158.7,158.66,6.3014]
[1748626186716,6.3009,158.68,158.65,6.3019]
[1748626187311,6.3013,158.67,158.65,6.3019]
[1748626187916,6.3013,158.67,158.64,33.3]
[1748626187917,4.13844008,158.7,158.64,33.3]
[1748626188415,6.3015,158.67,158.64,39.6022]
[1748626188814,4.13844008,158.7,158.64,39.6022]
[1748626189529,4.13844008,158.7,158.65,6.302]
[1748626189718,4.13844008,158.7,158.64,33.3]
[1748626190117,4.13844008,158.7,158.66,6.3013]
[1748626190421,6.3007,158.69,158.64,33.3]
[1748626190626,0.04844008,158.7,158.68,6.3009]
[1748626190928,6.34874008,158.7,158.64,33.3]
[1748626191122,6.34874008,158.7,158.67,6.301]
[1748626191518,0.04844008,158.7,158.64,33.3]
[1748626191726,0.04844008,158.7,158.68,6.3009]
[1748626191926,6.34854008,158.7,158.64,33.3]
[1748626192430,6.34854008,158.7,158.67,6.301]
[1748626193729,0.04844008,158.7,158.64,33.3]
[1748626194726,0.04844008,158.7,158.68,6.3007]
[1748626195130,0.04844008,158.7,158.67,6.3011]
[1748626195722,6.34864008,158.7,158.67,6.3011]
[1748626196422,6.3007,158.69,158.66,6.3015]
[1748626196628,0.04844008,158.7,158.66,6.3015]
[1748626197036,6.3007,158.69,158.66,6.3015]
[1748626197432,0.04844008,158.7,158.65,6.3019]
[1748626197627,0.04844008,158.7,158.64,33.32]
[1748626198732,6.34884008,158.7,158.64,33.32]
[1748626199030,6.34884008,158.7,158.67,6.301]
[1748626199224,6.3006,158.69,158.67,6.301]
[1748626200236,6.3009,158.68,158.64,33.32]
[1748626200442,0.04844008,158.7,158.64,33.32]
[1748626200931,0.04844008,158.7,158.65,6.3019]
[1748626201132,0.04844008,158.7,158.64,33.32]
[1748626201533,0.04844008,158.7,158.66,11.07802719]
[1748626201928,0.04844008,158.7,158.69,6.3005]
[1748626202135,0.04844008,158.7,158.69,39.6205]
[1748626203633,0.04844008,158.7,158.69,33.32]
[1748626204330,6.34854008,158.7,158.69,33.32]
[1748626205140,0.04844008,158.7,158.69,33.32]
[1748626205733,0.04844008,158.7,158.69,39.6205]
[1748626208242,2.0552,158.78,158.73,6.2987]
[1748626208439,2.0552,158.78,158.7,11.07802719]
[1748626208636,8.4185,158.79,158.7,11.07802719]
[1748626208841,33.24,158.83,158.71,2.013]
[1748626209043,33.24,158.83,158.73,11.07802719]
[1748626209234,0.04480195,158.8,158.76,0.04513391]
[1748626209845,6.34090195,158.8,158.77,6.297]
[1748626210146,0.04480195,158.8,158.76,0.04513391]
[1748626210342,0.04480195,158.8,158.77,6.2972]
[1748626210543,0.04480195,158.8,158.76,0.04513391]
[1748626211048,6.34110195,158.8,158.77,6.2972]
[1748626211244,0.04480195,158.8,158.76,0.04513391]
[1748626211837,6.2965,158.79,158.76,6.34263391]
[1748626212547,0.04480195,158.8,158.77,6.2973]
[1748626212748,0.04480195,158.8,158.76,0.04513391]
[1748626214641,6.34110195,158.8,158.77,6.2972]
[1748626214842,0.04480195,158.8,158.76,0.04513391]
[1748626216446,6.2973,158.77,158.76,0.04513391]
[1748626217646,6.2987,158.74,158.71,39.5394]
[1748626217856,2.0358,158.78,158.71,33.24]
[1748626218746,0.04618519,158.76,158.71,33.24]
[1748626219051,6.34398519,158.76,158.71,33.24]
[1748626219443,6.34398519,158.76,158.73,6.2986]
[1748626219641,0.04618519,158.76,158.71,33.24]
[1748626220546,6.2983,158.75,158.72,6.2993]
[1748626220949,0.04618519,158.76,158.71,33.24]
[1748626221646,6.2987,158.74,158.71,39.5395]
[1748626221946,6.2987,158.74,158.71,33.24]
[1748626222447,0.04618519,158.76,158.67,33.24]
[1748626222652,0.04561999,158.73,158.64,33.24]
[1748626222848,0.04561999,158.73,158.62,6.303]
[1748626223049,33.24,158.75,158.61,577.1]
[1748626223050,0.04302711,158.69,158.61,577.1]
[1748626223449,6.3014,158.67,158.61,577.1]
[1748626223648,0.04039189,158.66,158.61,577.1]
[1748626224049,6.34229189,158.66,158.62,6.3031]
[1748626224351,0.04039189,158.66,158.61,33.24]
[1748626225163,6.3023,158.65,158.61,39.5434]
[1748626225454,0.04039189,158.66,158.61,33.24]
[1748626225655,0.04039189,158.66,158.62,6.3031]
[1748626226053,6.3021,158.65,158.61,39.5436]
[1748626226555,0.04039189,158.66,158.64,6.3023]
[1748626226753,0.04039189,158.66,158.61,33.24]
[1748626227658,6.34219189,158.66,158.63,6.3027]
[1748626228252,0.04039189,158.66,158.61,33.24]
[1748626228859,0.04039189,158.66,158.63,6.3027]
[1748626229057,0.04039189,158.66,158.61,33.24]
[1748626230049,0.04039189,158.66,158.63,6.3026]
[1748626230253,0.04039189,158.66,158.61,33.24]
[1748626230650,0.04039189,158.66,158.58,33.24]
[1748626231557,0.04039189,158.66,158.59,2.0601]
[1748626231761,0.04039189,158.66,158.6,18.43197659]
[1748626232063,33.24,158.76,158.64,18.43197659]
[1748626232258,33.24,158.76,158.65,162.131]
[1748626232563,33.24,158.79,158.65,162.131]
[1748626232861,6.34083675,158.74,158.71,6.2997]
[1748626233063,6.34083675,158.74,158.71,0.043568]
[1748626233961,6.34073675,158.74,158.71,0.043568]
[1748626234563,0.04223675,158.74,158.71,0.043568]
[1748626236166,6.2991,158.73,158.71,0.043568]
[1748626236467,0.04223675,158.74,158.71,0.043568]
[1748626237565,0.04223675,158.74,158.73,6.2989]
[1748626237765,0.04223675,158.74,158.73,39.4789]
[1748626238355,6.2966,158.79,158.73,33.18]
[1748626238655,4.2922,158.84,158.74,124.7]
[1748626239165,33.18,158.88,158.74,126.8556]
[1748626239360,37.4048,158.88,158.78,6.2968]
[1748626239669,6.33929576,158.83,158.79,0.04686583]
[1748626239964,0.04429576,158.83,158.79,0.04686583]
[1748626240162,6.2961,158.8,158.79,0.04686583]
[1748626240359,4.0528,158.82,158.74,33.18]
[1748626240664,2.1734,158.81,158.71,33.18]
[1748626240863,6.2987,158.74,158.71,33.18]
[1748626241164,51.61197659,158.8,158.71,33.18]
[1748626241362,0.04184704,158.77,158.71,33.18]
[1748626241664,0.04184704,158.77,158.72,0.03916701]
[1748626241862,6.2989,158.73,158.72,0.03916701]
[1748626242961,0.04184704,158.77,158.72,0.03916701]
[1748626243555,6.2989,158.73,158.72,0.03916701]
[1748626245461,2.0079,158.75,158.65,33.18]
[1748626245660,20.52247659,158.72,158.63,544.24]
[1748626245857,33.18,158.71,158.62,33.18]
[1748626246464,0.04277178,158.68,158.62,33.18]
[1748626246771,0.04277178,158.68,158.64,6.3024]
[1748626247171,0.04277178,158.68,158.62,33.18]
[1748626247666,0.04277178,158.68,158.65,6.3018]
[1748626248256,0.04277178,158.68,158.62,33.18]
[1748626249574,0.04277178,158.68,158.67,6.3013]
[1748626249766,0.04277178,158.68,158.67,39.4813]
[1748626251067,0.04277178,158.68,158.67,33.18]
[1748626251369,0.04277178,158.68,158.65,33.18]
[1748626251967,6.3015,158.67,158.65,33.18]
[1748626252266,0.04277178,158.68,158.65,33.18]
[1748626254069,6.3013,158.67,158.65,33.18]
[1748626254567,0.04277178,158.68,158.66,6.3016]
[1748626254769,0.04277178,158.68,158.65,33.18]
[1748626255159,0.04277178,158.68,158.63,33.18]
[1748626255360,0.04277178,158.68,158.62,33.18]
[1748626256174,0.04277178,158.68,158.55,1.9975]
[1748626256467,0.04106864,158.63,158.56,33.18]
[1748626257271,0.04106864,158.63,158.57,6.305]
[1748626257771,6.3035,158.62,158.58,6.3046]
[1748626257974,0.04106864,158.63,158.56,33.18]
[1748626258873,6.3039,158.61,158.57,6.3052]
[1748626259074,0.04106864,158.63,158.57,6.3052]
[1748626259674,6.3039,158.61,158.57,6.3052]
[1748626260080,0.04106864,158.63,158.56,33.18]
[1748626260770,6.3044,158.6,158.56,33.18]
[1748626260974,6.34574742,158.6,158.56,33.18]
[1748626261172,6.34574742,158.6,158.56,39.4852]
[1748626261368,0.04134742,158.6,158.56,33.18]
[1748626261976,6.34564742,158.6,158.56,33.18]
[1748626262177,33.24134742,158.6,158.49,6.3083]
[1748626262377,6.3068,158.54,158.46,33.2]
[1748626262577,0.04711455,158.52,158.46,33.2]
[1748626263375,6.3084,158.5,158.46,33.2]
[1748626263679,0.04711455,158.52,158.46,33.2]
[1748626264586,33.24711455,158.52,158.43,33.2]
[1748626264785,51.74568557,158.52,158.43,33.2]
[1748626265279,0.04711455,158.52,158.48,6.3086]
[1748626265479,0.04711455,158.52,158.44,2.0652]
[1748626265671,6.35461455,158.52,158.44,2.0652]
[1748626266075,0.04711455,158.52,158.44,2.0652]
[1748626266673,6.3079,158.51,158.44,2.0652]
[1748626267279,6.3077,158.51,158.44,2.0652]
[1748626267477,0.04711455,158.52,158.43,33.2]
[1748626267681,0.042716,158.49,158.43,33.2]
[1748626268281,6.351416,158.49,158.45,6.3098]
[1748626268478,0.042716,158.49,158.43,33.2]
[1748626268984,0.042716,158.49,158.43,39.5107]
[1748626269185,0.042716,158.49,158.43,33.2]
[1748626269585,6.3096,158.47,158.43,39.5108]
[1748626270086,6.3095,158.47,158.43,39.5108]
[1748626270487,6.3096,158.47,158.43,39.5108]
[1748626270691,0.042716,158.49,158.43,33.2]
[1748626271478,0.042716,158.49,158.4,41.5572]
[1748626271686,6.3109,158.43,158.4,33.18]
[1748626271886,6.35105023,158.43,158.4,33.18]
[1748626272283,0.04015023,158.43,158.4,39.4917]
[1748626272487,0.04015023,158.43,158.4,33.18]
[1748626273286,0.04015023,158.43,158.36,544.42]
[1748626273479,0.04015023,158.43,158.35,33.18]
[1748626273686,0.04094059,158.41,158.35,33.18]
[1748626274486,0.04094059,158.41,158.4,6.312]
[1748626275585,1.9943,158.48,158.46,6.3096]
[1748626275891,33.18,158.5,158.46,6.3096]
[1748626276390,33.18,158.5,158.43,33.18]
[1748626276591,0.04708121,158.48,158.45,0.0409406]
[1748626276791,0.04708121,158.48,158.47,6.3093]
[1748626276997,0.04708121,158.48,158.45,0.0409406]
[1748626277394,0.04708121,158.48,158.47,6.3093]
[1748626278998,33.18,158.55,158.53,6.3069]
[1748626279195,33.18,158.58,158.47,33.18]
[1748626279596,6.3058,158.56,158.53,6.3066]
[1748626279784,33.18,158.58,158.47,33.18]
[1748626279989,6.3059,158.56,158.47,33.18]
[1748626280284,0.04713494,158.54,158.51,0.04803386]
[1748626280691,6.3073,158.52,158.51,0.04803386]
[1748626281293,0.04713494,158.54,158.51,0.04803386]
[1748626281294,6.307,158.53,158.51,0.04803386]
[1748626282194,6.3073,158.52,158.51,0.04803386]
[1748626284695,6.3071,158.53,158.51,0.04803386]
[1748626284897,0.04713494,158.54,158.51,0.04803386]
[1748626286492,6.35393494,158.54,158.51,0.04803386]
[1748626286692,0.04713494,158.54,158.51,0.04803386]
[1748626288598,0.04713494,158.54,158.51,6.35573386]
[1748626288893,0.04713494,158.54,158.51,0.04803386]
[1748626289098,0.04713494,158.54,158.51,6.35563386]
[1748626289298,0.04713494,158.54,158.51,0.04803386]
[1748626289493,0.04713494,158.54,158.53,6.3069]
[1748626290294,33.18,158.62,158.51,33.22803386]
[1748626290491,33.18,158.62,158.51,33.18]
[1748626290696,6.3048,158.59,158.55,6.3059]
[1748626290895,33.18,158.62,158.52,4.1907]
[1748626291198,0.04597964,158.59,158.55,0.04673866]
[1748626291600,6.3057,158.56,158.55,0.04673866]
[1748626292200,6.3073,158.52,158.51,33.18]
[1748626292398,35.247,158.58,158.47,39.4893]
[1748626292599,2.1328,158.57,158.47,39.4893]
[1748626292902,6.3083,158.5,158.47,39.4893]
[1748626293103,2.1328,158.57,158.47,33.18]
[1748626293303,0.04560436,158.54,158.5,0.0443502]
[1748626293802,6.3077,158.51,158.5,0.0443502]
[1748626294516,31.11367102,158.53,158.41,33.18]
[1748626294804,18.49857102,158.49,158.35,33.18]
[1748626295005,18.49857102,158.49,158.33,6.2924]
[1748626295006,6.3126,158.4,158.36,33.18]
[1748626295309,33.18,158.48,158.36,33.18]
[1748626295500,0.04278312,158.44,158.4,0.04406789]
[1748626295700,33.22278312,158.44,158.4,0.04406789]
[1748626296102,6.3122,158.41,158.4,0.04406789]
[1748626296699,6.32,158.41,158.29,577.98]
[1748626296903,2.0373,158.4,158.29,577.98]
[1748626297107,6.3138,158.37,158.29,577.98]
[1748626297410,2.0373,158.4,158.29,577.98]
[1748626297604,0.04153511,158.36,158.29,577.98]
[1748626298108,0.04153511,158.36,158.33,6.3151]
[1748626298409,0.04153511,158.36,158.33,33.38]
[1748626298604,33.38,158.44,158.33,33.38]
[1748626298804,6.3118,158.42,158.33,33.38]
[1748626299005,33.38,158.44,158.33,33.38]
[1748626299205,33.38,158.44,158.37,6.3135]
[1748626299405,39.6912,158.44,158.37,6.3135]
[1748626299607,0.04161208,158.42,158.39,0.0397081]
[1748626300405,578.3,158.47,158.39,0.0397081]
[1748626300406,6.309,158.49,158.39,0.0397081]
[1748626300610,6.309,158.49,158.38,4.2743]
[1748626300809,33.38,158.5,158.38,4.2743]
[1748626301011,6.3099,158.47,158.38,4.2743]
[1748626301314,33.38,158.5,158.38,4.2743]
[1748626301511,0.04024992,158.46,158.42,0.0442981]
[1748626302114,0.04024992,158.46,158.45,6.3106]
[1748626302810,0.04024992,158.46,158.45,39.6906]
[1748626303315,33.38,158.53,158.45,33.38]
[1748626303516,6.1321,158.55,158.45,33.38]
[1748626304117,1.9976,158.55,158.45,33.38]
[1748626304311,0.04835826,158.52,158.49,6.3087]
[1748626304511,0.04835826,158.52,158.48,0.04065556]
[1748626304918,6.3085,158.51,158.48,0.04065556]
[1748626305309,0.04835826,158.52,158.48,0.04065556]
[1748626305714,33.42835826,158.52,158.48,0.04065556]
[1748626306116,6.309,158.49,158.48,0.04065556]
[1748626307118,33.42835826,158.52,158.48,0.04065556]
[1748626308817,6.309,158.49,158.48,0.04065556]
[1748626309819,6.3108,158.45,158.42,33.38]
[1748626310215,33.38,158.52,158.42,33.38]
[1748626310718,33.38,158.52,158.43,6.3113]
[1748626311021,0.04660838,158.49,158.46,0.0430536]
[1748626313118,6.3098,158.47,158.46,0.0430536]
[1748626314118,6.3095,158.48,158.46,0.0430536]
[1748626314319,0.04660838,158.49,158.46,0.0430536]
[1748626314814,0.04660838,158.49,158.46,6.3529536]
[1748626315915,0.04660838,158.49,158.47,6.3098]
[1748626316115,0.04660838,158.49,158.46,0.0430536]
[1748626316311,0.04660838,158.49,158.46,33.4230536]
[1748626316519,0.04660838,158.49,158.46,39.7330536]
[1748626317014,0.04660838,158.49,158.46,0.0430536]
[1748626317421,6.3098,158.47,158.46,0.0430536]
[1748626319727,2.0753,158.48,158.4,33.38]
[1748626320226,6.3112,158.44,158.41,6.3121]
[1748626320424,2.0753,158.48,158.4,33.38]
[1748626320625,2.0753,158.48,158.42,0.03968795]
[1748626320626,0.04540057,158.46,158.42,0.03968795]
[1748626320827,0.04540057,158.46,158.44,6.3107]
[1748626321125,0.04540057,158.46,158.42,0.03968795]
[1748626321318,6.35570057,158.46,158.43,6.3111]
[1748626321521,0.04540057,158.46,158.42,0.03968795]
[1748626321923,0.04540057,158.46,158.43,6.3111]
[1748626322330,6.35560057,158.46,158.43,6.3111]
[1748626323128,0.04540057,158.46,158.42,0.03968795]
[1748626323633,6.35560057,158.46,158.43,6.3112]
[1748626324025,0.04540057,158.46,158.42,0.03968795]
[1748626324224,0.04540057,158.46,158.35,33.38]
[1748626324427,33.38,158.47,158.35,33.38]
[1748626324625,6.3127,158.4,158.37,6.3136]
[1748626325029,33.38,158.47,158.38,6.3133]
[1748626325232,6.3119,158.42,158.35,33.38]
[1748626325633,0.0426609,158.4,158.35,33.38]
[1748626326034,6.3553609,158.4,158.35,33.38]
[1748626326234,6.3553609,158.4,158.37,6.3135]
[1748626326533,0.0426609,158.4,158.35,33.38]
[1748626326835,33.38,158.47,158.42,6.3117]
[1748626327035,2.0753,158.48,158.41,33.46]
[1748626327235,2.0753,158.48,158.41,39.7719]
[1748626327535,2.0753,158.48,158.41,33.46]
[1748626327734,0.04742164,158.46,158.43,0.04121065]
[1748626328233,6.311,158.44,158.43,0.04121065]
[1748626330232,0.04742164,158.46,158.43,0.04121065]
[1748626330737,6.3106,158.45,158.43,0.04121065]
[1748626331339,6.35782164,158.46,158.43,6.35241065]
[1748626331837,6.3109,158.45,158.43,0.04121065]
[1748626332338,6.35772164,158.46,158.43,0.04121065]
[1748626332839,6.35772164,158.46,158.43,6.35241065]
[1748626333038,6.3106,158.45,158.43,0.04121065]
[1748626333538,0.04742164,158.46,158.43,0.04121065]
[1748626333836,0.04742164,158.46,158.45,6.3106]
[1748626334033,0.04742164,158.46,158.43,0.04121065]
[1748626334740,6.3108,158.45,158.43,0.04121065]
[1748626334936,0.04742164,158.46,158.43,0.04121065]
[1748626335531,0.04742164,158.46,158.45,6.3106]
[1748626335734,0.04742164,158.46,158.43,0.04121065]
[1748626336440,0.04742164,158.46,158.44,6.3107]
[1748626337640,0.04742164,158.46,158.45,6.3106]
[1748626339037,4.2509,158.53,158.47,6.3098]
[1748626339843,6.3089,158.5,158.47,6.3098]
[1748626340148,0.04085244,158.5,158.47,0.04797851]
[1748626340343,6.3094,158.48,158.47,0.04797851]
[1748626341347,6.3117,158.43,158.4,33.46]
[1748626341644,33.46,158.5,158.4,33.46]
[1748626342150,6.3122,158.41,158.4,33.46]
[1748626342350,0.04475878,158.42,158.39,0.04094541]
[1748626342547,6.3128,158.4,158.39,0.04051384]
[1748626344956,0.04608778,158.42,158.39,0.04051384]
[1748626345352,0.04608778,158.42,158.39,6.35311384]
[1748626345558,6.35818778,158.42,158.39,6.35311384]
[1748626346155,0.04608778,158.42,158.4,6.3126]
[1748626346456,0.04608778,158.42,158.39,0.04051384]
[1748626346656,6.35798778,158.42,158.39,6.35331384]
[1748626346852,0.04608778,158.42,158.39,0.04051384]
[1748626347758,0.04608778,158.42,158.4,6.3124]
[1748626348555,0.04608778,158.42,158.39,6.35331384]
[1748626348750,0.04608778,158.42,158.39,0.04051384]
[1748626349660,33.46,158.49,158.39,0.04051384]
[1748626349962,33.46,158.52,158.4,18.49857102]
[1748626350262,6.3092,158.49,158.46,6.31]
[1748626350564,33.46,158.53,158.41,33.46]
[1748626350757,6.3096,158.48,158.45,6.35122834]
[1748626351758,0.04307351,158.49,158.45,0.04062834]
[1748626352256,6.3102,158.46,158.45,0.04062834]
[1748626357760,0.04307351,158.49,158.45,0.04062834]
[1748626358165,6.3101,158.47,158.45,0.04062834]
[1748626358368,0.04307351,158.49,158.45,0.04062834]
[1748626358760,0.04307351,158.49,158.45,33.34062834]
[1748626358960,6.3095,158.48,158.45,39.65102834]
[1748626359265,0.04307351,158.49,158.45,0.04062834]
[1748626359461,2.0897,158.47,158.45,0.04062834]
[1748626359772,6.3102,158.46,158.45,0.04062834]
[1748626360471,6.31,158.47,158.45,0.04062834]
[1748626360859,6.3096,158.48,158.45,6.35102834]
[1748626361371,6.3096,158.48,158.46,6.3102]
[1748626361567,6.3096,158.48,158.45,33.34062834]
[1748626362163,6.3096,158.48,158.45,39.65102834]
[1748626362365,6.35227351,158.49,158.45,33.34062834]
[1748626362968,0.04307351,158.49,158.45,33.34062834]
[1748626363672,0.04307351,158.49,158.48,6.3094]
[1748626364165,33.3,158.61,158.48,131.34]
[1748626364366,33.3,158.61,158.49,33.3]
[1748626364763,6.306,158.57,158.54,6.307]
[1748626365067,0.04799221,158.57,158.54,0.04236229]
[1748626367271,0.04799221,158.57,158.56,6.3062]
[1748626367572,0.04799221,158.57,158.56,39.6062]
[1748626370374,33.3,158.67,158.59,6.3048]
[1748626370777,33.3,158.67,158.61,6.304]
[1748626371076,33.3,158.67,158.6,33.3]
[1748626371471,0.04377126,158.64,158.61,0.04156283]
[1748626371974,0.04377126,158.64,158.61,6.34556283]
[1748626372770,0.04377126,158.64,158.54,33.28]
[1748626373077,2.1478,158.65,158.54,33.28]
[1748626373273,2.1478,158.65,158.55,6.3066]
[1748626373477,2.1478,158.65,158.54,33.28]
[1748626373878,0.04631505,158.61,158.58,0.04435239]
[1748626374277,6.305,158.59,158.58,0.04435239]
[1748626375982,6.3069,158.55,158.53,33.28]
[1748626376181,4.3496,158.6,158.53,33.28]
[1748626377077,0.04724749,158.58,158.55,0.04293445]